bitfinex/quotes_ETHUSD_20241104
["timestamp","ask_amount","ask_price","bid_price","bid_amount"]
[1730727037788,2.53524788,2478.1,2477.6,4.81964]
[1730727038081,2.53524788,2478.1,2477.6,0.7835]
[1730727038082,7.0356,2478.0,2477.6,0.7835]
[1730727038285,7.0356,2478.0,2477.6,4.81966]
[1730727038982,7.0356,2478.0,2477.6,0.7835]
[1730727039139,7.0356,2478.0,2477.6,4.81966]
[1730727039340,3.0,2477.8,2477.6,0.7835]
[1730727040186,7.03553,2478.0,2477.6,4.81966]
[1730727040365,7.03553,2478.0,2477.6,0.7835]
[1730727040366,4.03568,2477.9,2477.6,0.7835]
[1730727040543,3.0,2477.8,2477.6,0.7835]
[1730727040879,3.0,2477.9,2477.6,0.7835]
[1730727041976,7.03568,2477.9,2477.6,0.7835]
[1730727043351,0.7847,2478.2,2477.6,4.81965]
[1730727043641,3.0,2477.9,2477.6,4.81965]
[1730727044391,3.0,2477.9,2477.6,0.7835]
[1730727045897,8.07115,2478.0,2477.6,0.7835]
[1730727046064,4.03553,2478.0,2477.6,0.7835]
[1730727046381,8.07118,2478.0,2477.6,0.7835]
[1730727046585,4.0357,2477.9,2477.6,0.7835]
[1730727048148,4.03537,2478.1,2477.6,0.7835]
[1730727048348,4.03558,2478.0,2477.6,0.7835]
[1730727048981,4.03537,2478.1,2477.7,4.03597]
[1730727049493,8.07085,2478.1,2477.7,4.03597]
[1730727049783,8.07085,2478.1,2477.6,4.81963]
[1730727050348,4.03537,2478.1,2477.7,4.03591]
[1730727050548,4.03537,2478.1,2477.8,0.7969]
[1730727052720,4.03551,2478.0,2477.8,0.7969]
[1730727052889,4.03567,2477.9,2477.8,0.7969]
[1730727053090,4.03615,2477.7,2477.1,3.80841515]
[1730727053303,0.7593,2477.8,2477.2,1.02882578]
[1730727053623,4.03673,2477.3,2477.0,0.8016]
[1730727054020,4.03651,2477.4,2477.0,4.91946305]
[1730727054490,4.03651,2477.4,2477.0,4.91937305]
[1730727054609,4.03651,2477.4,2477.0,4.83864]
[1730727055640,8.07315,2477.4,2477.0,0.8016]
[1730727056310,4.03651,2477.4,2477.0,0.8016]
[1730727056624,4.03651,2477.4,2477.0,4.83872]
[1730727057021,8.07314,2477.4,2477.0,0.8016]
[1730727057228,4.03651,2477.4,2477.0,0.8016]
[1730727057433,4.0367,2477.3,2477.0,0.8016]
[1730727058266,4.03651,2477.4,2477.0,0.8016]
[1730727058418,3.0,2477.5,2477.1,4.03683]
[1730727058619,4.03616,2477.6,2477.3,0.7864]
[1730727059317,3.0,2477.7,2477.3,0.7864]
[1730727059517,7.03603,2477.7,2477.3,0.7864]
[1730727060760,0.813,2478.0,2477.3,4.82301]
[1730727060919,4.03606,2477.7,2477.4,0.08072128]
[1730727061253,4.03617,2477.6,2477.3,0.7864]
[1730727061444,4.03606,2477.7,2477.3,4.82303]
[1730727061757,4.03606,2477.7,2477.3,0.7864]
[1730727062121,4.03606,2477.7,2477.3,4.823]
[1730727062521,4.03626,2477.6,2477.3,0.7864]
[1730727063036,4.03606,2477.7,2477.3,0.7864]
[1730727063436,4.03578,2477.9,2477.4,0.0807213]
[1730727063637,4.03578,2477.9,2477.5,8.07264]
[1730727063978,4.03578,2477.9,2477.5,4.03632]
[1730727064131,3.0,2478.1,2477.7,4.03591]
[1730727064471,5.0,2478.9,2478.0,0.7502]
[1730727064472,0.7764,2478.5,2478.0,0.7502]
[1730727064680,6.22542915,2478.6,2478.1,8.07068]
[1730727064983,6.22542915,2478.6,2478.0,0.7502]
[1730727064984,6.22542915,2478.6,2478.3,4.03494]
[1730727064985,2.19077915,2478.6,2478.3,4.03494]
[1730727065470,2.19077915,2478.6,2478.4,4.03484]
[1730727065675,2.19077915,2478.6,2478.5,4.84909]
[1730727066093,2.19077915,2478.6,2478.5,0.8144]
[1730727066444,2.19077915,2478.6,2478.5,4.84909]
[1730727067681,0.805,2479.2,2478.5,4.84909]
[1730727067980,0.805,2479.2,2478.3,4.8021]
[1730727068191,4.03447,2478.7,2478.3,0.7672]
[1730727068486,4.0346,2478.6,2478.1,4.81142]
[1730727068654,4.0346,2478.6,2478.1,4.81137]
[1730727068855,4.03416,2478.9,2478.1,4.81137]
[1730727069060,4.03434,2478.8,2478.2,4.03518]
[1730727069257,4.03434,2478.8,2478.3,4.03492]
[1730727069512,4.03416,2478.9,2478.4,4.03485]
[1730727069783,3.0,2478.9,2478.6,0.7988]
[1730727070097,3.0,2478.9,2478.6,4.83332]
[1730727070246,4.03383,2479.1,2478.6,4.83332]
[1730727070247,3.0,2479.0,2478.7,4.03435]
[1730727070447,4.03389,2479.0,2478.6,4.83333]
[1730727070685,4.03363,2479.2,2478.7,4.03426]
[1730727070889,3.7805,2479.4,2478.6,0.7988]
[1730727071085,3.7805,2479.4,2478.4,8.06945]
[1730727071086,4.0347,2478.5,2478.1,4.83352]
[1730727071294,4.03498,2478.4,2478.1,0.7982]
[1730727071503,7.03404,2478.9,2477.9,4.03565]
[1730727071504,4.03509,2478.3,2477.9,0.7982]
[1730727071785,4.03509,2478.3,2477.6,4.03604]
[1730727071786,4.0356,2478.0,2477.6,0.7753]
[1730727072009,4.438809,2478.2,2477.6,4.81136]
[1730727072010,4.0353,2478.2,2477.6,4.81136]
[1730727072159,3.0,2478.2,2477.8,4.03583]
[1730727072490,3.0,2478.2,2477.6,4.81138]
[1730727072491,4.03519,2478.2,2477.7,4.03598]
[1730727072694,4.03541,2478.1,2477.7,4.03598]
[1730727072865,8.07046,2478.2,2477.7,4.03598]
[1730727073069,4.03519,2478.2,2477.8,4.03582]
[1730727073294,3.0,2478.3,2477.7,4.03598]
[1730727073499,3.0,2478.3,2477.8,4.03581]
[1730727073500,7.0351,2478.3,2477.8,4.03581]
[1730727073817,4.03505,2478.3,2477.8,8.07151]
[1730727073967,4.03505,2478.3,2477.8,4.0357]
[1730727074169,4.0352,2478.2,2477.8,4.0357]
[1730727074480,4.0354,2478.1,2477.6,0.7753]
[1730727074683,4.03561,2478.0,2477.6,0.7753]
[1730727075009,0.806,2478.5,2477.6,0.7753]
[1730727075010,4.03521,2478.2,2477.7,4.03592]
[1730727075171,4.03521,2478.2,2477.8,0.08070827]
[1730727075773,4.03521,2478.2,2477.8,4.03575]
[1730727076200,4.03521,2478.2,2477.6,4.81133]
[1730727076201,4.03542,2478.1,2477.6,4.81133]
[1730727076572,4.03542,2478.1,2477.6,8.8474]
[1730727076767,4.03542,2478.1,2477.6,4.81133]
[1730727077314,4.03536,2478.1,2477.6,8.84736]
[1730727078474,4.03536,2478.1,2477.6,4.81133]
[1730727078675,4.03564,2478.0,2477.6,0.7753]
[1730727079485,4.03564,2478.0,2477.6,4.81144]
[1730727079683,4.03551,2478.0,2477.6,4.81144]
[1730727080000,4.03551,2478.0,2477.6,0.7753]
[1730727080374,4.03551,2478.0,2477.6,4.81144]
[1730727080796,0.806,2478.5,2477.6,0.7753]
[1730727081005,4.03535,2478.1,2477.7,4.03593]
[1730727081621,4.03557,2478.0,2477.6,0.7753]
[1730727081792,4.03537,2478.1,2477.6,0.7753]
[1730727082009,4.03551,2478.0,2477.6,4.81144]
[1730727082910,4.03534,2478.2,2477.7,4.03599]
[1730727083080,4.880436,2478.2,2477.7,4.03599]
[1730727083781,4.880436,2478.2,2477.7,8.07192]
[1730727084015,4.03534,2478.2,2477.7,8.07192]
[1730727084224,4.03534,2478.2,2477.7,4.03593]
[1730727084885,4.03534,2478.2,2477.7,8.07181]
[1730727085219,4.03534,2478.2,2477.7,4.03588]
[1730727086220,4.03537,2478.1,2477.7,4.03588]
[1730727086381,4.03537,2478.1,2477.4,0.7719]
[1730727086382,4.03595,2477.8,2477.4,0.7719]
[1730727086894,4.03595,2477.8,2477.1,3.80841515]
[1730727086895,4.03675,2477.3,2477.1,0.7719]
[1730727087231,4.03675,2477.3,2476.9,0.7719]
[1730727087232,4.03681,2477.2,2476.9,0.7719]
[1730727087375,4.03667,2477.3,2476.9,0.7719]
[1730727087582,4.03705,2477.1,2476.9,0.7719]
[1730727087778,0.481897,2477.3,2476.8,4.03746]
[1730727087978,0.481897,2477.3,2476.7,0.85264263]
[1730727087979,7.0366,2477.4,2477.0,4.03712]
[1730727088183,0.7823,2477.7,2477.1,4.80886]
[1730727088410,11.07255,2477.6,2477.1,4.8088]
[1730727088655,3.0,2477.7,2477.1,0.7719]
[1730727088957,0.7823,2477.9,2477.5,4.03632]
[1730727088958,7.03576,2477.9,2477.5,4.03632]
[1730727089112,8.2236081,2477.9,2477.6,0.7719]
[1730727089453,4.1878481,2477.9,2477.6,0.7719]
[1730727089618,4.03562,2478.0,2477.6,4.80804]
[1730727089822,4.03568,2477.9,2477.6,0.7719]
[1730727090017,8.07144,2477.9,2477.6,0.7719]
[1730727090216,8.07143,2477.9,2477.6,0.7719]
[1730727090645,4.03552,2478.0,2477.6,0.7719]
[1730727090820,4.0359,2477.8,2477.6,0.7719]
[1730727091651,4.036,2477.7,2477.6,0.7719]
[1730727091849,4.036,2477.7,2477.2,0.8307]
[1730727092163,4.03665,2477.3,2477.2,0.8307]
[1730727092443,4.03691,2477.2,2476.9,0.8307]
[1730727092665,4.03704,2477.1,2476.9,0.8307]
[1730727093012,4.03691,2477.2,2476.9,0.8307]
[1730727093212,8.07383,2477.2,2476.9,0.8307]
[1730727093454,4.03691,2477.2,2476.9,0.8307]
[1730727093664,4.03706,2477.1,2476.9,0.8307]
[1730727094349,4.03689,2477.2,2476.9,0.8307]
[1730727095549,4.03653,2477.4,2476.9,0.8307]
[1730727095550,4.03714,2477.0,2476.9,0.8307]
[1730727096773,4.03683,2477.2,2476.9,0.8307]
[1730727096929,4.03705,2477.1,2476.9,0.8307]
[1730727098135,4.03683,2477.2,2476.9,0.8307]
[1730727098364,4.037,2477.1,2476.9,0.8307]
[1730727099430,4.03677,2477.3,2476.9,0.8307]
[1730727100631,4.03681,2477.2,2476.9,0.8307]
[1730727102141,4.03722,2477.0,2476.7,0.7793]
[1730727102349,4.03738,2476.9,2476.5,0.7798]
[1730727102555,0.7556,2477.2,2476.5,0.7798]
[1730727102556,4.03773,2476.7,2476.5,0.7798]
[1730727103352,4.03749,2476.8,2476.5,0.7798]
[1730727103886,4.03764,2476.7,2476.5,0.7798]
[1730727104046,4.03779,2476.6,2476.5,0.7798]
[1730727104445,4.03779,2476.6,2476.3,0.7798]
[1730727105071,4.03779,2476.6,2476.4,0.08075342]
[1730727105244,4.03779,2476.6,2476.3,0.7798]
[1730727105771,4.03748,2476.8,2476.3,0.7798]
[1730727105944,4.03772,2476.7,2476.3,4.81805]
[1730727106452,4.03772,2476.7,2476.3,0.7798]
[1730727106645,4.03772,2476.7,2476.4,0.08075182]
[1730727106847,4.03782,2476.6,2476.3,0.7798]
[1730727107279,4.03772,2476.7,2476.4,0.08075346]
[1730727107486,4.03739,2476.9,2476.5,4.84683]
[1730727108280,8.07509,2476.8,2476.5,0.809]
[1730727108584,4.03802,2476.5,2476.3,0.819]
[1730727108881,4.03802,2476.5,2475.9,7.90782209]
[1730727108882,4.0384,2476.3,2476.0,0.819]
[1730727109087,4.03852,2476.2,2476.0,0.819]
[1730727109382,4.0386,2476.1,2476.0,0.819]
[1730727109586,4.03852,2476.2,2476.0,0.819]
[1730727109587,8.07708,2476.2,2476.0,0.819]
[1730727109787,4.03852,2476.2,2476.0,0.819]
[1730727109984,4.0386,2476.1,2475.7,4.85822]
[1730727110646,4.0386,2476.1,2475.7,0.819]
[1730727110858,4.03858,2476.2,2475.7,0.819]
[1730727111063,4.0389,2476.0,2475.7,0.819]
[1730727111307,8.0778,2476.0,2475.7,0.819]
[1730727111459,4.03901,2475.9,2475.7,0.819]
[1730727111661,4.03901,2475.9,2475.5,0.8351762]
[1730727111901,4.03901,2475.9,2475.5,1.06243219]
[1730727112080,4.03901,2475.9,2475.5,5.10201219]
[1730727112292,4.0391,2475.8,2475.5,0.8351762]
[1730727112493,4.03893,2475.9,2475.5,0.8351762]
[1730727112668,3.0,2476.3,2475.5,0.8351762]
[1730727112873,4.03932,2475.7,2475.5,0.8351762]
[1730727113066,4.03916,2475.8,2475.5,0.8351762]
[1730727113482,4.03901,2475.9,2475.5,0.91595817]
[1730727113807,7.03873,2476.1,2475.5,0.91595817]
[1730727113808,3.0,2476.0,2475.6,4.03934]
[1730727114285,4.03877,2476.0,2475.6,4.03934]
[1730727114483,4.03819,2476.4,2475.9,4.03885]
[1730727114696,4.03782,2476.6,2476.0,4.86785]
[1730727114914,4.03782,2476.6,2476.1,4.0386]
[1730727115064,4.03806,2476.5,2476.1,4.0386]
[1730727115264,4.03818,2476.4,2476.0,4.86785]
[1730727115512,4.03818,2476.4,2476.0,0.8291]
[1730727115678,4.03806,2476.5,2476.0,4.86777]
[1730727115876,4.03806,2476.5,2476.0,8.90646]
[1730727116082,4.03806,2476.5,2476.1,4.03859]
[1730727116695,4.03776,2476.7,2476.1,4.03859]
[1730727116899,4.03786,2476.6,2476.1,4.0385]
[1730727117203,4.03797,2476.5,2476.1,4.0385]
[1730727120296,4.0378,2476.6,2476.1,4.0385]
[1730727120466,4.0378,2476.6,2476.2,4.52513]
[1730727120901,4.03761,2476.8,2476.3,0.08075517]
[1730727121204,4.0376,2476.8,2476.3,4.8342]
[1730727121609,4.03757,2476.8,2476.4,4.03811]
[1730727122163,4.03757,2476.8,2476.3,4.83426]
[1730727122164,4.03746,2476.8,2476.3,4.83426]
[1730727122490,4.03763,2476.7,2476.3,0.796]
[1730727123020,4.03746,2476.8,2476.3,0.796]
[1730727123021,8.07502,2476.8,2476.3,0.796]
[1730727123304,8.07501,2476.8,2476.4,0.22714122]
[1730727123496,8.07501,2476.8,2476.3,4.8342]
[1730727123813,8.07501,2476.8,2476.4,0.22719988]
[1730727123971,4.03726,2477.0,2476.4,4.03811]
[1730727124315,4.03726,2477.0,2476.6,4.03776]
[1730727124614,4.0373,2476.9,2476.5,4.03787]
[1730727124968,4.03723,2477.0,2476.5,4.03785]
[1730727125187,4.0371,2477.1,2476.7,4.03752]
[1730727125379,4.03695,2477.2,2476.8,0.8099]
[1730727125597,4.03691,2477.2,2476.8,0.8099]
[1730727125799,4.82514,2477.3,2476.8,4.84728]
[1730727126027,4.03674,2477.3,2476.8,4.84728]
[1730727126237,4.03711,2477.1,2476.8,0.8099]
[1730727126410,4.03711,2477.1,2476.8,1.3350465]
[1730727127936,4.03714,2477.0,2476.8,0.8099]
[1730727128137,4.03714,2477.0,2476.5,7.84634515]
[1730727128138,4.03714,2477.0,2476.5,0.7688]
[1730727128139,4.03743,2476.9,2476.5,0.7688]
[1730727128346,4.03749,2476.8,2476.6,0.22736476]
[1730727128637,4.03779,2476.6,2476.3,0.7688]
[1730727128801,4.03779,2476.6,2476.4,0.22741985]
[1730727128802,4.03802,2476.5,2476.4,0.22741985]
[1730727128997,4.03802,2476.5,2476.2,3.80841515]
[1730727129301,4.03788,2476.6,2476.3,0.22751206]
[1730727129605,4.03793,2476.6,2476.2,3.80841515]
[1730727129832,4.03793,2476.6,2476.3,0.22765137]
[1730727130031,4.03793,2476.6,2476.2,3.80841515]
[1730727130340,4.03796,2476.5,2476.3,0.22767541]
[1730727130541,4.03796,2476.5,2476.2,3.80841515]
[1730727130745,4.03796,2476.5,2476.1,4.80729]
[1730727130746,4.03796,2476.5,2476.3,0.22770816]
[1730727130909,4.03811,2476.4,2476.1,0.7688]
[1730727131248,4.03828,2476.3,2476.2,0.22772884]
[1730727131465,4.03828,2476.3,2475.9,8.62321515]
[1730727131602,4.84966,2476.5,2476.1,4.0386]
[1730727131802,4.03798,2476.5,2476.2,4.03622885]
[1730727132003,4.03781,2476.6,2476.2,7.84673515]
[1730727132237,4.03781,2476.6,2476.3,0.22781832]
[1730727132438,4.03781,2476.6,2476.2,3.80841515]
[1730727132637,4.03805,2476.5,2476.2,3.80841515]
[1730727132811,4.03781,2476.6,2476.2,3.80841515]
[1730727133453,4.03798,2476.5,2476.2,3.80841515]
[1730727133611,4.03798,2476.5,2476.1,4.0385]
[1730727133813,8.0757,2476.6,2476.1,8.07697]
[1730727134119,8.07647,2476.4,2476.2,0.22782369]
[1730727134319,4.0382,2476.4,2476.0,4.40323673]
[1730727134522,4.0382,2476.4,2476.1,0.22781145]
[1730727134840,4.03798,2476.5,2476.2,0.22781115]
[1730727135045,4.03798,2476.5,2476.1,4.03859]
[1730727135228,4.03798,2476.5,2476.2,0.22780596]
[1730727135425,0.8224,2476.9,2476.3,0.8198]
[1730727135632,4.03779,2476.6,2476.3,0.8198]
[1730727136920,4.03805,2476.5,2476.0,0.7641]
[1730727137115,4.03823,2476.4,2476.0,0.7641]
[1730727137324,4.03823,2476.4,2476.1,0.22783068]
[1730727137524,4.03823,2476.4,2476.0,0.7641]
[1730727137836,4.03823,2476.4,2476.1,0.22785945]
[1730727138035,4.03828,2476.3,2476.0,0.7641]
[1730727138246,4.03828,2476.3,2476.1,0.22784302]
[1730727138456,4.03828,2476.3,2476.0,0.7641]
[1730727138457,4.03763,2476.7,2476.0,0.7641]
[1730727138762,4.03826,2476.4,2476.1,0.30866865]
[1730727138966,4.03826,2476.4,2476.1,0.08076707]
[1730727139132,4.03826,2476.4,2476.0,0.7641]
[1730727139333,4.03826,2476.4,2476.1,0.08076378]
[1730727139739,4.03826,2476.4,2476.1,0.08076376]
[1730727140147,4.03829,2476.3,2476.1,0.08076376]
[1730727140454,4.03829,2476.3,2476.0,0.84486484]
[1730727140762,4.03776,2476.7,2476.2,3.80841515]
[1730727141080,4.03785,2476.6,2476.2,7.84678515]
[1730727141245,4.0376,2476.8,2476.3,5.07504671]
[1730727141429,4.03769,2476.7,2476.3,4.8472]
[1730727142855,4.03769,2476.7,2476.4,0.22790449]
[1730727143162,4.03769,2476.7,2476.3,4.8472]
[1730727143365,4.03769,2476.7,2476.4,0.22803297]
[1730727143668,4.03769,2476.7,2476.3,4.8472]
[1730727143866,4.03769,2476.7,2476.4,0.22803694]
[1730727144066,4.03769,2476.7,2476.3,4.8472]
[1730727144480,4.03769,2476.7,2476.4,0.22813556]
[1730727144630,4.03769,2476.7,2476.3,4.8472]
[1730727144844,4.03769,2476.7,2476.4,0.22814251]
[1730727145060,4.03769,2476.7,2476.3,4.8472]
[1730727145283,4.03769,2476.7,2476.4,0.22816685]
[1730727145581,4.03769,2476.7,2476.3,4.8472]
[1730727145748,4.03769,2476.7,2476.4,0.22822929]
[1730727145951,4.03769,2476.7,2476.3,4.8472]
[1730727146149,4.03789,2476.6,2476.4,0.22823053]
[1730727146365,4.03823,2476.4,2476.0,0.8188]
[1730727146591,4.03823,2476.4,2476.1,0.22831995]
[1730727146592,4.03836,2476.3,2476.1,0.22831995]
[1730727146887,4.03836,2476.3,2476.0,0.8188]
[1730727147088,4.03844,2476.2,2476.1,0.22835897]
[1730727150248,4.03867,2476.1,2475.9,0.36536259]
[1730727150448,4.03867,2476.1,2476.0,0.22832783]
[1730727151153,4.03926,2475.7,2475.5,0.0615762]
[1730727151350,4.03926,2475.7,2475.6,0.2283185]
[1730727151581,4.0391,2475.8,2475.6,0.2283185]
[1730727151782,4.0391,2475.8,2475.7,0.2283185]
[1730727152361,4.03942,2475.6,2475.5,0.0615762]
[1730727152568,4.03929,2475.7,2475.5,0.28984951]
[1730727152796,4.03929,2475.7,2475.6,0.22827331]
[1730727153356,4.03942,2475.6,2475.5,0.0615762]
[1730727157785,4.846415,2476.1,2475.6,0.7926]
[1730727157786,2.11504687,2476.1,2475.6,0.7926]
[1730727157973,4.03886,2476.0,2475.6,5.32127462]
[1730727158173,6.15365687,2476.1,2475.6,5.32127462]
[1730727158402,6.15365687,2476.1,2475.7,0.22796915]
[1730727158605,4.03878,2476.0,2475.6,5.32127462]
[1730727158782,4.03878,2476.0,2475.7,0.22797301]
[1730727159113,4.03878,2476.0,2475.6,0.7926]
[1730727159486,4.03878,2476.0,2475.6,4.83202]
[1730727159894,4.03878,2476.0,2475.6,8.87134]
[1730727160079,4.03878,2476.0,2475.7,0.22801877]
[1730727160280,4.03878,2476.0,2475.6,4.83192]
[1730727160479,4.03878,2476.0,2475.7,0.22803655]
[1730727160717,4.03895,2475.9,2475.6,0.7926]
[1730727160918,4.03912,2475.8,2475.6,0.7926]
[1730727161119,4.0394,2475.7,2475.5,0.42642666]
[1730727161282,4.03942,2475.6,2475.5,0.0615762]
[1730727161620,4.03942,2475.6,2475.5,0.28965248]
[1730727161914,8.07863,2475.7,2475.5,0.0615762]
[1730727162084,4.03942,2475.6,2475.5,0.0615762]
[1730727163676,4.84576,2475.8,2475.5,0.0615762]
[1730727163887,4.039,2475.9,2475.5,0.8529762]
[1730727164113,7.80451,2476.1,2475.5,0.0615762]
[1730727164292,4.03938,2475.7,2475.5,0.0615762]
[1730727164693,8.07874,2475.7,2475.5,0.0615762]
[1730727164914,4.03942,2475.6,2475.5,0.0615762]
[1730727165614,4.923888,2475.6,2475.5,0.0615762]
[1730727166028,7.923888,2475.6,2475.5,0.0615762]
[1730727166528,8.689788,2475.6,2475.5,0.0615762]
[1730727167832,4.80532,2475.6,2475.5,0.0615762]
[1730727172544,4.03942,2475.6,2475.5,0.0615762]
[1730727175165,4.03936,2475.7,2475.5,0.0615762]
[1730727175535,7.85217,2475.9,2475.5,0.0615762]
[1730727175536,4.03918,2475.8,2475.5,0.0615762]
[1730727175968,4.03926,2475.7,2475.5,0.0615762]
[1730727176352,7.03911,2475.8,2475.5,0.0615762]
[1730727177452,4.03868,2476.1,2475.6,0.8151]
[1730727177675,4.03887,2476.0,2475.6,4.85441]
[1730727177886,4.03895,2475.9,2475.7,0.2281547]
[1730727178049,4.03895,2475.9,2475.6,0.8151]
[1730727179143,4.03917,2475.8,2475.6,0.8151]
[1730727179778,4.03926,2475.7,2475.5,0.0615762]
[1730727180079,4.03926,2475.7,2475.6,0.22829106]
[1730727180277,4.03926,2475.7,2475.6,0.22839156]
[1730727180465,4.03942,2475.6,2475.5,0.0615762]
[1730727182145,8.07865,2475.7,2475.5,0.0615762]
[1730727182346,4.03926,2475.7,2475.5,0.0615762]
[1730727182758,8.07866,2475.7,2475.5,0.0615762]
[1730727182947,4.03942,2475.6,2475.5,0.0615762]
[1730727183283,4.847288,2475.6,2475.5,0.0615762]
[1730727186247,5.632988,2475.6,2475.5,0.0615762]
[1730727186887,8.632988,2475.6,2475.5,0.0615762]
[1730727192075,4.03942,2475.6,2475.5,0.0615762]
[1730727193196,4.03902,2475.9,2475.6,0.8053]
[1730727193362,7.35148159,2476.2,2475.6,4.84456]
[1730727193565,7.35148159,2476.2,2475.7,4.03918]
[1730727193566,4.0387,2476.1,2475.7,4.03918]
[1730727193877,4.0387,2476.1,2475.6,8.65304515]
[1730727194097,4.0387,2476.1,2475.8,0.7721]
[1730727194592,4.03877,2476.0,2475.8,0.7721]
[1730727194953,4.03893,2475.9,2475.8,0.7721]
[1730727195362,4.03911,2475.8,2475.6,0.785]
[1730727195692,4.03896,2475.9,2475.6,0.785]
[1730727195854,4.03896,2475.9,2475.7,0.22860618]
[1730727196054,4.03896,2475.9,2475.6,1.27362062]
[1730727196495,4.03864,2476.1,2475.6,5.39381111]
[1730727196789,0.7574,2476.4,2475.7,0.22858155]
[1730727196790,4.03879,2476.0,2475.7,0.22858155]
[1730727196964,4.03879,2476.0,2475.7,0.50593683]
[1730727197499,4.039,2475.9,2475.7,0.50593683]
[1730727197701,4.039,2475.9,2475.6,0.785]
[1730727197996,4.03879,2476.0,2475.7,0.22853583]
[1730727198289,4.03879,2476.0,2475.6,4.8244]
[1730727198475,4.03879,2476.0,2475.7,0.22864412]
[1730727198674,4.03897,2475.9,2475.6,0.785]
[1730727198865,4.03897,2475.9,2475.7,0.22865682]
[1730727199062,4.03897,2475.9,2475.6,0.785]
[1730727199352,4.03897,2475.9,2475.7,0.22866883]
[1730727199698,4.03879,2476.0,2475.6,4.82441]
[1730727199987,4.03879,2476.0,2475.7,0.71721283]
[1730727200290,4.03879,2476.0,2475.7,0.48859862]
[1730727200596,4.03861,2476.1,2475.7,4.52777862]
[1730727200951,0.7574,2476.4,2475.8,0.08077574]
[1730727201185,0.7574,2476.4,2475.7,0.48859862]
[1730727201186,4.03828,2476.3,2475.9,8.87713433]
[1730727201389,4.03828,2476.3,2476.0,0.50595883]
[1730727201698,4.03828,2476.3,2476.0,4.54471883]
[1730727202191,4.03785,2476.6,2476.2,3.80841515]
[1730727202380,4.03802,2476.5,2476.2,3.80841515]
[1730727202611,4.03802,2476.5,2476.1,4.80973]
[1730727202818,4.03802,2476.5,2476.1,5.29832862]
[1730727203283,4.03812,2476.4,2476.1,1.25979862]
[1730727203812,4.03803,2476.5,2476.1,1.25979862]
[1730727204410,4.03803,2476.5,2476.1,5.29839862]
[1730727205608,4.03772,2476.7,2476.1,5.29839862]
[1730727205609,4.03786,2476.6,2476.1,5.29839862]
[1730727205820,4.03797,2476.5,2476.2,0.50595883]
[1730727206521,4.03818,2476.4,2476.1,0.7712]
[1730727206923,4.86073,2476.8,2476.1,0.7712]
[1730727206924,4.03794,2476.6,2476.1,0.7712]
[1730727207131,4.86073,2476.8,2476.1,0.7712]
[1730727207132,4.03823,2476.4,2476.1,0.7712]
[1730727207293,8.07649,2476.4,2476.1,0.7712]
[1730727207693,4.03823,2476.4,2476.1,0.7712]
[1730727208523,4.03803,2476.5,2476.1,4.89055562]
[1730727208751,0.8232,2476.8,2476.1,4.80979]
[1730727208752,4.03768,2476.7,2476.1,4.80979]
[1730727208903,4.03779,2476.6,2476.2,4.03843]
[1730727209250,4.03768,2476.7,2476.3,4.83724]
[1730727209751,4.03796,2476.5,2476.3,0.799]
[1730727210117,4.03811,2476.4,2476.3,0.799]
[1730727210313,4.03779,2476.6,2476.0,0.8283]
[1730727210550,4.03831,2476.3,2476.0,0.8283]
[1730727211056,4.03831,2476.3,2476.0,0.82698363]
[1730727211233,4.03851,2476.2,2476.0,0.82698363]
[1730727211419,4.0386,2476.1,2475.6,7.84774515]
[1730727211747,4.0386,2476.1,2475.7,0.22813953]
[1730727211748,4.03902,2475.9,2475.7,0.22813953]
[1730727211952,4.03902,2475.9,2475.5,4.1010062]
[1730727212547,4.0387,2476.1,2475.6,4.03936]
[1730727212548,4.03879,2476.0,2475.6,4.03936]
[1730727212855,4.03903,2475.9,2475.5,4.1010062]
[1730727213018,4.03916,2475.8,2475.5,0.0615762]
[1730727213340,4.03942,2475.6,2475.5,0.0615762]
[1730727214153,4.03933,2475.7,2475.5,0.0615762]
[1730727214344,4.03942,2475.6,2475.5,0.0615762]
[1730727223042,4.80572,2475.6,2475.5,0.0615762]
[1730727223252,5.690221,2475.6,2475.5,0.0615762]
[1730727224558,8.690221,2475.6,2475.5,0.0615762]
[1730727224863,9.240221,2475.6,2475.5,0.0615762]
[1730727226133,8.690221,2475.6,2475.5,0.0615762]
[1730727229573,9.250221,2475.6,2475.5,0.0615762]
[1730727232066,9.240221,2475.6,2475.5,0.0615762]
[1730727232227,9.250221,2475.6,2475.5,0.0615762]
[1730727233769,13.05863615,2475.6,2475.5,6.2e-06]
[1730727234823,16.01489211,2475.6,2475.5,6.2e-06]
[1730727235222,16.01370533,2475.6,2475.5,6.2e-06]
[1730727235622,16.01370533,2475.6,2474.3,0.0615762]
[1730727235623,4.04138,2474.4,2474.3,0.0615762]
[1730727238067,4.04125,2474.5,2474.3,0.0615762]
[1730727238970,4.04138,2474.4,2474.3,0.0615762]
[1730727242303,7.04138,2474.4,2474.3,0.0615762]
[1730727243290,11.39979515,2474.4,2474.3,0.0615762]
[1730727243448,12.22059515,2474.4,2474.3,6.2e-06]
[1730727243646,18.76669967,2474.4,2474.3,6.2e-06]
[1730727245363,9.95828452,2474.4,2474.3,6.2e-06]
[1730727245565,9.40828452,2474.4,2474.3,6.2e-06]
[1730727246191,10.20379967,2474.4,2474.3,6.2e-06]
[1730727246403,4.04334,2473.2,2473.1,0.0615762]
[1730727246895,4.04296,2473.5,2473.1,0.0615762]
[1730727247054,4.04329,2473.3,2473.2,0.7784]
[1730727247886,3.0,2473.2,2473.1,0.0615762]
[1730727248059,4.8284,2473.3,2473.1,0.0615762]
[1730727248060,3.0,2473.3,2473.1,0.0615762]
[1730727248260,4.04334,2473.2,2473.1,0.0615762]